[Event "*** Titled Tuesday Blitz"]
[Site "Chess.com"]
[Date "2018.06.05"]
[Round "2"]
[White "guillembaches"]
[Black "Sameer555"]
[Result "0-1"]
[WhiteElo "2227"]
[BlackElo "2164"]
[TimeControl "180+2"]
[EndTime "13:25:26 PDT"]
[Termination "Sameer555 won on time"]

1. d4 {[%clk 0:03:01.9]} 1... Nf6 {[%clk 0:02:58.4]} 2. Bf4 {[%clk 0:03:02]}
2... c5 {[%clk 0:02:57.9]} 3. e3 {[%clk 0:03:01]} 3... cxd4 {[%clk 0:02:51.7]}
4. exd4 {[%clk 0:03:01.4]} 4... d5 {[%clk 0:02:53.6]} 5. c3 {[%clk 0:02:59.8]}
5... Nc6 {[%clk 0:02:43.5]} 6. Bd3 {[%clk 0:03:00]} 6... Bg4 {[%clk 0:02:33.9]}
7. Ne2 {[%clk 0:02:59.5]} 7... e6 {[%clk 0:02:34.9]} 8. O-O {[%clk 0:02:58.5]}
8... Be7 {[%clk 0:02:36.1]} 9. Nd2 {[%clk 0:02:58.9]} 9... O-O {[%clk
0:02:37.2]} 10. Qc2 {[%clk 0:02:55.2]} 10... a6 {[%clk 0:02:35.9]} 11. Ng3
{[%clk 0:02:50.9]} 11... Rc8 {[%clk 0:02:36.6]} 12. h3 {[%clk 0:02:50.5]} 12...
Nxd4 {[%clk 0:02:21.2]} 13. Qb1 {[%clk 0:02:42.4]} 13... Nc6 {[%clk 0:01:49.1]}
14. hxg4 {[%clk 0:02:41.5]} 14... Nxg4 {[%clk 0:01:51]} 15. Bxh7+ {[%clk
0:02:30.9]} 15... Kh8 {[%clk 0:01:51.8]} 16. Bd3 {[%clk 0:02:23.9]} 16... f5
{[%clk 0:01:52.8]} 17. Nf3 {[%clk 0:02:21.3]} 17... g5 {[%clk 0:01:47.5]} 18.
Bd2 {[%clk 0:02:17.3]} 18... Kg7 {[%clk 0:01:47.9]} 19. Re1 {[%clk 0:02:13.9]}
19... Bc5 {[%clk 0:01:30.1]} 20. Re2 {[%clk 0:01:42]} 20... Qd6 {[%clk
0:01:28.2]} 21. Nf1 {[%clk 0:01:27]} 21... f4 {[%clk 0:01:21.1]} 22. b4 {[%clk
0:01:22.2]} 22... Ba7 {[%clk 0:01:19.4]} 23. Nxg5 {[%clk 0:01:11.5]} 23... e5
{[%clk 0:01:17.6]} 24. Bf5 {[%clk 0:01:05.6]} 24... Nxf2 {[%clk 0:00:55.6]} 25.
Rxf2 {[%clk 0:01:01.2]} 25... Rce8 {[%clk 0:00:57.5]} 26. Bh3 {[%clk 0:00:48.5]}
26... e4 {[%clk 0:00:57.1]} 27. Qd1 {[%clk 0:00:30.8]} 27... Qg6 {[%clk
0:00:55]} 28. Qg4 {[%clk 0:00:27.3]} 28... Ne5 {[%clk 0:00:55.8]} 29. Ne6+
{[%clk 0:00:26.2]} 29... Rxe6 {[%clk 0:00:52.3]} 30. Qxe6 {[%clk 0:00:28.1]}
30... Nf3+ {[%clk 0:00:32.4]} 31. Kh1 {[%clk 0:00:26]} 31... Qxe6 {[%clk
0:00:32.2]} 32. Bxe6 {[%clk 0:00:26.6]} 32... Rh8+ {[%clk 0:00:33.5]} 33. Bh3
{[%clk 0:00:24.9]} 33... Bxf2 {[%clk 0:00:31.9]} 34. gxf3 {[%clk 0:00:21.7]}
34... Rxh3+ {[%clk 0:00:27.2]} 35. Kg2 {[%clk 0:00:22.6]} 35... Rxf3 {[%clk
0:00:27.9]} 36. Rd1 {[%clk 0:00:20.5]} 36... Bb6 {[%clk 0:00:26.9]} 37. Be1
{[%clk 0:00:19.5]} 37... d4 {[%clk 0:00:22.9]} 38. cxd4 {[%clk 0:00:20.1]} 38...
Ra3 {[%clk 0:00:24.1]} 39. d5 {[%clk 0:00:18.1]} 39... Rxa2+ {[%clk 0:00:23.6]}
40. Rd2 {[%clk 0:00:19.2]} 40... Ra1 {[%clk 0:00:24.4]} 41. Bh4 {[%clk
0:00:19.9]} 41... f3+ {[%clk 0:00:24.3]} 42. Kg3 {[%clk 0:00:19.6]} 42... Rxf1
{[%clk 0:00:24.9]} 43. d6 {[%clk 0:00:20.7]} 43... e3 {[%clk 0:00:25.1]} 44. Rc2
{[%clk 0:00:19.9]} 44... e2 {[%clk 0:00:25.7]} 45. Kg4 {[%clk 0:00:20.1]} 45...
f2 {[%clk 0:00:23.5]} 0-1

[Event "*** Titled Tuesday Blitz"]
[Site "Chess.com"]
[Date "2018.06.05"]
[Round "2"]
[White "Divertissement"]
[Black "tigra"]
[Result "1/2-1/2"]
[WhiteElo "2536"]
[BlackElo "2714"]
[TimeControl "180+2"]
[EndTime "13:25:34 PDT"]
[Termination "Game drawn by repetition"]

1. d4 {[%clk 0:03:01.9]} 1... Nf6 {[%clk 0:02:59.7]} 2. Nf3 {[%clk 0:03:03.4]}
2... g6 {[%clk 0:03:00.3]} 3. Bg5 {[%clk 0:03:03.9]} 3... Ne4 {[%clk 0:02:59.2]}
4. Bf4 {[%clk 0:03:03.3]} 4... c5 {[%clk 0:02:58.7]} 5. e3 {[%clk 0:03:03.1]}
5... Bg7 {[%clk 0:02:57.2]} 6. Nbd2 {[%clk 0:03:03.5]} 6... d5 {[%clk
0:02:56.4]} 7. Bb5+ {[%clk 0:03:03.2]} 7... Bd7 {[%clk 0:02:56.5]} 8. Bxd7+
{[%clk 0:03:02.2]} 8... Nxd7 {[%clk 0:02:55.5]} 9. c3 {[%clk 0:03:01.8]} 9...
cxd4 {[%clk 0:02:51.3]} 10. exd4 {[%clk 0:03:00.9]} 10... Nef6 {[%clk
0:02:40.8]} 11. O-O {[%clk 0:03:01.1]} 11... O-O {[%clk 0:02:41.7]} 12. a4
{[%clk 0:03:01]} 12... Qa5 {[%clk 0:02:39]} 13. Re1 {[%clk 0:02:58]} 13... e6
{[%clk 0:02:39.1]} 14. h3 {[%clk 0:02:58.7]} 14... Nh5 {[%clk 0:02:29.6]} 15.
Bh2 {[%clk 0:02:53.4]} 15... Bh6 {[%clk 0:02:26.7]} 16. Ne5 {[%clk 0:02:50.6]}
16... Nxe5 {[%clk 0:02:13.4]} 17. Bxe5 {[%clk 0:02:45.9]} 17... Bf4 {[%clk
0:02:08.3]} 18. Nf3 {[%clk 0:02:44.7]} 18... Rfc8 {[%clk 0:02:04.1]} 19. Bxf4
{[%clk 0:02:43.9]} 19... Nxf4 {[%clk 0:02:04.7]} 20. Qd2 {[%clk 0:02:45.8]}
20... Nh5 {[%clk 0:02:05.6]} 21. Qh6 {[%clk 0:02:40.7]} 21... Qc7 {[%clk
0:01:55.9]} 22. Ng5 {[%clk 0:02:37.3]} 22... Nf6 {[%clk 0:01:56.8]} 23. Re3
{[%clk 0:02:38]} 23... Qe7 {[%clk 0:01:50.2]} 24. Rae1 {[%clk 0:02:38.1]} 24...
Qf8 {[%clk 0:01:50.2]} 25. Qh4 {[%clk 0:02:39.1]} 25... Qg7 {[%clk 0:01:07.9]}
26. Rf3 {[%clk 0:01:52.3]} 26... Rf8 {[%clk 0:00:36.3]} 27. Rxf6 {[%clk
0:01:45.2]} 27... h6 {[%clk 0:00:35.7]} 28. Nf3 {[%clk 0:01:39.4]} 28... b5
{[%clk 0:00:29.2]} 29. axb5 {[%clk 0:01:38]} 29... Rab8 {[%clk 0:00:31.1]} 30.
Qf4 {[%clk 0:01:35.1]} 30... Rxb5 {[%clk 0:00:31.6]} 31. b4 {[%clk 0:01:36.7]}
31... a5 {[%clk 0:00:32]} 32. bxa5 {[%clk 0:01:37.2]} 32... Rxa5 {[%clk
0:00:33.9]} 33. Qe5 {[%clk 0:01:35.7]} 33... Ra3 {[%clk 0:00:34.3]} 34. Re3
{[%clk 0:01:35.9]} 34... Rfa8 {[%clk 0:00:24.5]} 35. Rf4 {[%clk 0:01:33.8]}
35... Ra1+ {[%clk 0:00:23.1]} 36. Kh2 {[%clk 0:01:34.6]} 36... R8a2 {[%clk
0:00:24.1]} 37. Qxg7+ {[%clk 0:01:33.2]} 37... Kxg7 {[%clk 0:00:25.2]} 38. Ne5
{[%clk 0:01:35.1]} 38... Ra7 {[%clk 0:00:25]} 39. Ref3 {[%clk 0:01:35.1]} 39...
f5 {[%clk 0:00:25.7]} 40. h4 {[%clk 0:01:20.4]} 40... g5 {[%clk 0:00:19.3]} 41.
hxg5 {[%clk 0:01:08.3]} 41... hxg5 {[%clk 0:00:21.2]} 42. Rg3 {[%clk 0:01:07.9]}
42... Kh6 {[%clk 0:00:17.3]} 43. Rh3+ {[%clk 0:00:51.4]} 43... Kg7 {[%clk
0:00:17.6]} 44. Rg3 {[%clk 0:00:41.5]} 44... Kf6 {[%clk 0:00:18]} 45. Ng4+
{[%clk 0:00:42.5]} 45... Kg6 {[%clk 0:00:19.1]} 46. Ne5+ {[%clk 0:00:32.7]}
46... Kf6 {[%clk 0:00:19.9]} 47. Ng4+ {[%clk 0:00:32.9]} 47... Kg6 {[%clk
0:00:20.3]} 48. Ne5+ {[%clk 0:00:27.4]} 48... Kf6 {[%clk 0:00:21.2]} 1/2-1/2

[Event "*** Titled Tuesday Blitz"]
[Site "Chess.com"]
[Date "2018.06.05"]
[Round "2"]
[White "PaulfromSPb"]
[Black "Rish_97"]
[Result "1-0"]
[WhiteElo "2426"]
[BlackElo "2289"]
[TimeControl "180+2"]
[EndTime "13:25:45 PDT"]
[Termination "PaulfromSPb won by resignation"]

1. e4 {[%clk 0:03:01.9]} 1... e5 {[%clk 0:02:59.4]} 2. Nf3 {[%clk 0:03:01.9]}
2... Nc6 {[%clk 0:03:00.3]} 3. Bc4 {[%clk 0:02:56.4]} 3... Bc5 {[%clk
0:03:00.1]} 4. c3 {[%clk 0:02:57]} 4... Nf6 {[%clk 0:03:00.9]} 5. d3 {[%clk
0:02:57.4]} 5... d6 {[%clk 0:03:00.7]} 6. O-O {[%clk 0:02:58.2]} 6... O-O {[%clk
0:03:01.3]} 7. Bb3 {[%clk 0:02:58.9]} 7... a5 {[%clk 0:03:02]} 8. Nbd2 {[%clk
0:02:59.3]} 8... Be6 {[%clk 0:02:59]} 9. Bc2 {[%clk 0:03:00.1]} 9... h6 {[%clk
0:02:57.4]} 10. h3 {[%clk 0:03:01.1]} 10... Qb8 {[%clk 0:02:56.7]} 11. Re1
{[%clk 0:03:01.6]} 11... Qa7 {[%clk 0:02:55.7]} 12. Qe2 {[%clk 0:03:01.9]} 12...
b5 {[%clk 0:02:51.1]} 13. Nf1 {[%clk 0:03:00]} 13... b4 {[%clk 0:02:47.4]} 14.
Ng3 {[%clk 0:03:00.1]} 14... Rfe8 {[%clk 0:02:46.9]} 15. Nh4 {[%clk 0:02:58.5]}
15... d5 {[%clk 0:02:44.7]} 16. Nhf5 {[%clk 0:02:57.5]} 16... a4 {[%clk
0:02:36.8]} 17. Qf3 {[%clk 0:02:51.9]} 17... dxe4 {[%clk 0:02:11.5]} 18. dxe4
{[%clk 0:02:51.7]} 18... Nh7 {[%clk 0:01:51.9]} 19. Nh5 {[%clk 0:02:44.8]} 19...
g6 {[%clk 0:00:49.9]} 20. Nxh6+ {[%clk 0:02:39.4]} 20... Kh8 {[%clk 0:00:48.4]}
21. Nf6 {[%clk 0:02:39.8]} 21... Rf8 {[%clk 0:00:37.5]} 22. Nhg4 {[%clk
0:02:30.8]} 22... Bxg4 {[%clk 0:00:33.3]} 23. hxg4 {[%clk 0:02:29.4]} 23...
Bxf2+ {[%clk 0:00:31.6]} 24. Qxf2 {[%clk 0:01:38.9]} 24... Qxf2+ {[%clk
0:00:29.6]} 25. Kxf2 {[%clk 0:01:40.8]} 25... Nxf6 {[%clk 0:00:31.1]} 26. Rh1+
{[%clk 0:01:41.3]} 26... Kg8 {[%clk 0:00:31.5]} 27. Kf3 {[%clk 0:01:40.8]} 27...
a3 {[%clk 0:00:26.8]} 28. Bb3 {[%clk 0:01:31.8]} 28... axb2 {[%clk 0:00:21.6]}
29. Bxb2 {[%clk 0:01:32.1]} 29... bxc3 {[%clk 0:00:21.9]} 30. Bxc3 {[%clk
0:01:32.9]} 30... Rad8 {[%clk 0:00:22.9]} 31. g5 {[%clk 0:01:29.4]} 31... Rd3+
{[%clk 0:00:19.4]} 32. Ke2 {[%clk 0:01:27.5]} 32... Rxc3 {[%clk 0:00:20.5]} 33.
gxf6 {[%clk 0:01:27]} 33... Rd8 {[%clk 0:00:21.6]} 34. Rh8+ {[%clk 0:01:10.2]}
34... Kxh8 {[%clk 0:00:18.1]} 35. Bxf7 {[%clk 0:01:11.7]} 35... Rc2+ {[%clk
0:00:18.2]} 36. Ke3 {[%clk 0:01:10.2]} 36... Rc3+ {[%clk 0:00:17.4]} 37. Ke2
{[%clk 0:01:09.2]} 37... Rc2+ {[%clk 0:00:18.6]} 38. Ke3 {[%clk 0:01:07]} 38...
Rc3+ {[%clk 0:00:19.6]} 39. Ke2 {[%clk 0:01:02.8]} 39... Nd4+ {[%clk 0:00:14.3]}
40. Kf2 {[%clk 0:01:02.8]} 40... Rc2+ {[%clk 0:00:15.4]} 41. Kg3 {[%clk
0:01:02.7]} 41... Ne2+ {[%clk 0:00:16.6]} 42. Kg4 {[%clk 0:01:02.7]} 42... Ng3
{[%clk 0:00:12.4]} 43. Kxg3 {[%clk 0:01:00.6]} 43... Rd3+ {[%clk 0:00:13.3]} 44.
Kh2 {[%clk 0:01:01.3]} 44... Rdd2 {[%clk 0:00:14.1]} 45. Rg1 {[%clk 0:01:01.7]}
45... Rf2 {[%clk 0:00:15.3]} 46. Bb3 {[%clk 0:01:01.7]} 46... Rce2 {[%clk
0:00:12.7]} 47. f7 {[%clk 0:01:00.6]} 47... Kg7 {[%clk 0:00:13.9]} 48. Kg3
{[%clk 0:00:57.9]} 48... Rf4 {[%clk 0:00:14.9]} 49. Rc1 {[%clk 0:00:55.1]} 49...
Re3+ {[%clk 0:00:15.9]} 50. Kh2 {[%clk 0:00:55.8]} 50... Rexe4 {[%clk
0:00:16.8]} 51. Rxc7 {[%clk 0:00:55.1]} 51... Re2 {[%clk 0:00:17.2]} 52. Rc8
{[%clk 0:00:54]} 52... Rff2 {[%clk 0:00:16.7]} 53. Rg8+ {[%clk 0:00:54.3]} 53...
Kh7 {[%clk 0:00:17.4]} 54. Bd5 {[%clk 0:00:54.5]} 54... e4 {[%clk 0:00:14]} 55.
f8=Q {[%clk 0:00:54.7]} 55... Rxg2+ {[%clk 0:00:15.2]} 56. Kh3 {[%clk
0:00:55.3]} 56... Rh2+ {[%clk 0:00:16]} 57. Kg4 {[%clk 0:00:56.6]} 57... Reg2+
{[%clk 0:00:17.3]} 58. Kf4 {[%clk 0:00:57.8]} 58... Rf2+ {[%clk 0:00:18.9]} 59.
Kxe4 {[%clk 0:00:58.9]} 59... Rxf8 {[%clk 0:00:20.8]} 60. Rxf8 {[%clk
0:00:59.9]} 60... Rxa2 {[%clk 0:00:22.7]} 61. Bxa2 {[%clk 0:01:00]} 1-0

[Event "*** Titled Tuesday Blitz"]
[Site "Chess.com"]
[Date "2018.06.05"]
[Round "2"]
[White "SamCopeland"]
[Black "CarlssonLudvig"]
[Result "1-0"]
[WhiteElo "2028"]
[BlackElo "2067"]
[TimeControl "180+2"]
[EndTime "13:25:48 PDT"]
[Termination "SamCopeland won by resignation"]

1. e4 {[%clk 0:03:01.9]} 1... e5 {[%clk 0:03:00.1]} 2. Nf3 {[%clk 0:03:01.6]}
2... Nc6 {[%clk 0:03:01.1]} 3. Bc4 {[%clk 0:03:01.4]} 3... Bc5 {[%clk
0:03:01.5]} 4. b4 {[%clk 0:03:01.3]} 4... Bxb4 {[%clk 0:03:00.6]} 5. c3 {[%clk
0:03:02.8]} 5... Ba5 {[%clk 0:03:01.8]} 6. d4 {[%clk 0:03:03.8]} 6... b5 {[%clk
0:03:03.4]} 7. Bxb5 {[%clk 0:02:47.3]} 7... Nxd4 {[%clk 0:03:03.3]} 8. Bc4
{[%clk 0:02:37.2]} 8... Nxf3+ {[%clk 0:02:45]} 9. Qxf3 {[%clk 0:02:39.1]} 9...
Qf6 {[%clk 0:02:46.2]} 10. Qd3 {[%clk 0:02:21.2]} 10... Ne7 {[%clk 0:02:38.3]}
11. Ba3 {[%clk 0:01:51.2]} 11... O-O {[%clk 0:02:05.6]} 12. Bxe7 {[%clk
0:01:39.6]} 12... Qxe7 {[%clk 0:02:05]} 13. Qd5 {[%clk 0:01:40.9]} 13... Bb6
{[%clk 0:01:33.8]} 14. Qxa8 {[%clk 0:01:32.4]} 14... c6 {[%clk 0:01:35.3]} 15.
O-O {[%clk 0:01:25.3]} 15... Qc5 {[%clk 0:01:14.5]} 16. Be2 {[%clk 0:01:19.6]}
16... d6 {[%clk 0:01:15.4]} 17. Nd2 {[%clk 0:00:43.5]} 17... Qxc3 {[%clk
0:00:26.5]} 18. Rac1 {[%clk 0:00:28.9]} 18... Qxd2 {[%clk 0:00:26.5]} 19. Qxc6
{[%clk 0:00:29.6]} 19... Be6 {[%clk 0:00:05.2]} 20. Bc4 {[%clk 0:00:27.2]} 20...
Bxf2+ {[%clk 0:00:03.9]} 21. Kh1 {[%clk 0:00:25.4]} 21... Bxc4 {[%clk
0:00:05.2]} 22. Rxc4 {[%clk 0:00:21]} 22... Bc5 {[%clk 0:00:06.7]} 23. Qd5
{[%clk 0:00:18.5]} 23... Qe2 {[%clk 0:00:06.8]} 24. Rcc1 {[%clk 0:00:19.1]}
24... h6 {[%clk 0:00:04]} 25. Rb1 {[%clk 0:00:20.1]} 25... Qg4 {[%clk 0:00:03]}
26. Rb7 {[%clk 0:00:20.1]} 26... Qg6 {[%clk 0:00:03.5]} 27. Qb3 {[%clk
0:00:19.1]} 27... Qe6 {[%clk 0:00:04]} 28. Qxe6 {[%clk 0:00:19.9]} 28... fxe6
{[%clk 0:00:05.1]} 29. Rxf8+ {[%clk 0:00:21.5]} 29... Kxf8 {[%clk 0:00:07]} 30.
g3 {[%clk 0:00:21.6]} 30... d5 {[%clk 0:00:07.4]} 31. Kg2 {[%clk 0:00:21.7]}
31... dxe4 {[%clk 0:00:07.9]} 32. Kf1 {[%clk 0:00:21.6]} 32... e3 {[%clk
0:00:06.7]} 33. Ke2 {[%clk 0:00:22.8]} 33... Bd4 {[%clk 0:00:08.1]} 34. a4
{[%clk 0:00:22.4]} 34... Bc5 {[%clk 0:00:05.9]} 35. a5 {[%clk 0:00:22.9]} 35...
Bd4 {[%clk 0:00:07.1]} 36. a6 {[%clk 0:00:23.6]} 36... Bc5 {[%clk 0:00:08.3]}
37. Kd3 {[%clk 0:00:24.4]} 37... Bd4 {[%clk 0:00:08.9]} 38. h4 {[%clk
0:00:23.4]} 38... Bc5 {[%clk 0:00:07.2]} 39. h5 {[%clk 0:00:24.3]} 39... Kg8
{[%clk 0:00:08.1]} 40. g4 {[%clk 0:00:24.9]} 40... Kf8 {[%clk 0:00:09.4]} 41.
Ke2 {[%clk 0:00:19.1]} 41... Bd4 {[%clk 0:00:10.3]} 42. Kf3 {[%clk 0:00:18.7]}
42... Bc5 {[%clk 0:00:10.1]} 43. Rc7 {[%clk 0:00:19.1]} 43... Bd4 {[%clk
0:00:10.5]} 44. Rc8+ {[%clk 0:00:19.8]} 44... Kf7 {[%clk 0:00:11]} 45. Rc7+
{[%clk 0:00:20.7]} 45... Kf6 {[%clk 0:00:12.4]} 46. Rb7 {[%clk 0:00:21.8]} 46...
Bc5 {[%clk 0:00:06.9]} 47. Rc7 {[%clk 0:00:21.9]} 47... Bd4 {[%clk 0:00:07.9]}
48. Rb7 {[%clk 0:00:23.3]} 48... e4+ {[%clk 0:00:08.4]} 49. Ke2 {[%clk
0:00:23.4]} 49... Kg5 {[%clk 0:00:09.6]} 50. Re7 {[%clk 0:00:22.7]} 50... e5
{[%clk 0:00:07.2]} 51. Rxg7+ {[%clk 0:00:23.2]} 51... Kf4 {[%clk 0:00:08.1]} 52.
Rg6 {[%clk 0:00:24.1]} 52... Bc5 {[%clk 0:00:07.5]} 53. Rxh6 {[%clk 0:00:24.2]}
53... Kxg4 {[%clk 0:00:09]} 54. Rc6 {[%clk 0:00:23.1]} 54... Bd4 {[%clk
0:00:08.3]} 55. h6 {[%clk 0:00:24]} 1-0

[Event "*** Titled Tuesday Blitz"]
[Site "Chess.com"]
[Date "2018.06.05"]
[Round "2"]
[White "Alopekos"]
[Black "plouarzel"]
[Result "1/2-1/2"]
[WhiteElo "2362"]
[BlackElo "2420"]
[TimeControl "180+2"]
[EndTime "13:25:49 PDT"]
[Termination "Game drawn by repetition"]

1. e4 {[%clk 0:03:01.9]} 1... d6 {[%clk 0:02:58.2]} 2. d4 {[%clk 0:03:02.4]}
2... Nf6 {[%clk 0:02:57.6]} 3. Nc3 {[%clk 0:03:03.9]} 3... e5 {[%clk 0:02:58.8]}
4. Nf3 {[%clk 0:03:04.1]} 4... Nbd7 {[%clk 0:02:59.4]} 5. Bc4 {[%clk 0:03:04.7]}
5... exd4 {[%clk 0:03:00.5]} 6. Nxd4 {[%clk 0:03:04.5]} 6... Nb6 {[%clk
0:03:01.9]} 7. Bd3 {[%clk 0:02:58.9]} 7... Be7 {[%clk 0:03:02.8]} 8. O-O {[%clk
0:02:58.7]} 8... O-O {[%clk 0:03:04.1]} 9. a4 {[%clk 0:03:00.2]} 9... a5 {[%clk
0:03:04.2]} 10. Re1 {[%clk 0:02:59.2]} 10... c6 {[%clk 0:03:05.6]} 11. Qf3
{[%clk 0:02:50.9]} 11... d5 {[%clk 0:03:04.4]} 12. e5 {[%clk 0:02:35.5]} 12...
Ne8 {[%clk 0:03:01.9]} 13. Nf5 {[%clk 0:02:10.5]} 13... Bxf5 {[%clk 0:03:01]}
14. Qxf5 {[%clk 0:02:12.4]} 14... g6 {[%clk 0:03:01.5]} 15. Qh3 {[%clk 0:02:13]}
15... Ng7 {[%clk 0:03:02]} 16. Bh6 {[%clk 0:02:12.4]} 16... f6 {[%clk
0:03:03.4]} 17. e6 {[%clk 0:01:33.1]} 17... Nc8 {[%clk 0:02:55.9]} 18. Ne2
{[%clk 0:01:29.3]} 18... Nd6 {[%clk 0:02:56.5]} 19. Nf4 {[%clk 0:01:14.5]} 19...
f5 {[%clk 0:02:41.5]} 20. Rad1 {[%clk 0:00:57.1]} 20... Re8 {[%clk 0:02:40.7]}
21. c4 {[%clk 0:00:54.9]} 21... d4 {[%clk 0:02:40.1]} 22. c5 {[%clk 0:00:50.3]}
22... Nc8 {[%clk 0:02:40.2]} 23. Bc4 {[%clk 0:00:45.5]} 23... b5 {[%clk
0:02:28.2]} 24. axb5 {[%clk 0:00:42]} 24... cxb5 {[%clk 0:02:29.1]} 25. Bxb5
{[%clk 0:00:43.9]} 25... Rf8 {[%clk 0:02:27.1]} 26. Bc4 {[%clk 0:00:43.4]} 26...
Na7 {[%clk 0:02:27.2]} 27. Qg3 {[%clk 0:00:28.1]} 27... Qe8 {[%clk 0:02:06.1]}
28. Nd5 {[%clk 0:00:24]} 28... Rc8 {[%clk 0:02:01.3]} 29. Nxe7+ {[%clk
0:00:21.6]} 29... Qxe7 {[%clk 0:02:03.2]} 30. Bg5 {[%clk 0:00:23.5]} 30... Qxc5
{[%clk 0:02:00.2]} 31. e7+ {[%clk 0:00:21.6]} 31... Qxc4 {[%clk 0:02:01.7]} 32.
exf8=Q+ {[%clk 0:00:23.5]} 32... Rxf8 {[%clk 0:02:03.6]} 33. Re7 {[%clk
0:00:12.8]} 33... Nc6 {[%clk 0:02:01.6]} 34. Rc7 {[%clk 0:00:12.9]} 34... Ne6
{[%clk 0:02:03]} 35. Rc1 {[%clk 0:00:09.6]} 35... f4 {[%clk 0:01:46.2]} 36. Bxf4
{[%clk 0:00:10.6]} 36... Nxf4 {[%clk 0:01:45.3]} 37. Qxf4 {[%clk 0:00:05.1]}
37... Qd5 {[%clk 0:01:34.4]} 38. Qd2 {[%clk 0:00:04.3]} 38... Ne5 {[%clk
0:01:33.9]} 39. R7c5 {[%clk 0:00:04.2]} 39... Qd6 {[%clk 0:01:35.3]} 40. Rxa5
{[%clk 0:00:03.2]} 40... Ng4 {[%clk 0:01:36.5]} 41. g3 {[%clk 0:00:03]} 41...
Rxf2 {[%clk 0:01:36.4]} 42. Ra8+ {[%clk 0:00:02.3]} 42... Kg7 {[%clk 0:01:31.8]}
43. Ra7+ {[%clk 0:00:02.9]} 43... Kf6 {[%clk 0:01:27.6]} 44. Rf1 {[%clk
0:00:03.3]} 44... Rxf1+ {[%clk 0:01:28.9]} 45. Kxf1 {[%clk 0:00:05.2]} 45... d3
{[%clk 0:01:30.4]} 46. Qc3+ {[%clk 0:00:04.5]} 46... Kg5 {[%clk 0:01:26.6]} 47.
Ra5+ {[%clk 0:00:05.6]} 47... Kh6 {[%clk 0:01:28.1]} 48. Qd2+ {[%clk 0:00:06.9]}
48... Kg7 {[%clk 0:01:29.3]} 49. Ra7+ {[%clk 0:00:04.9]} 49... Kg8 {[%clk
0:01:30.6]} 50. Ra3 {[%clk 0:00:04.8]} 50... Ne5 {[%clk 0:01:25.5]} 51. Ra8+
{[%clk 0:00:04.5]} 51... Kg7 {[%clk 0:01:26.2]} 52. Ra7+ {[%clk 0:00:06.4]}
52... Kg8 {[%clk 0:01:26.6]} 53. Ra8+ {[%clk 0:00:07.3]} 53... Kg7 {[%clk
0:01:27.8]} 54. Qf4 {[%clk 0:00:07]} 54... d2 {[%clk 0:01:22.5]} 55. Ra7+ {[%clk
0:00:06.2]} 55... Kg8 {[%clk 0:01:23.6]} 56. Ra8+ {[%clk 0:00:07.5]} 56... Kg7
{[%clk 0:01:24.5]} 57. Ra7+ {[%clk 0:00:08.8]} 57... Kh8 {[%clk 0:01:15]} 58.
Ra8+ {[%clk 0:00:05.6]} 58... Kg7 {[%clk 0:01:14.9]} 59. Ra7+ {[%clk 0:00:06.8]}
1/2-1/2

[Event "*** Titled Tuesday Blitz"]
[Site "Chess.com"]
[Date "2018.06.05"]
[Round "2"]
[White "orrbaverlekszarnyon"]
[Black "littleplotkin"]
[Result "1-0"]
[WhiteElo "2389"]
[BlackElo "2373"]
[TimeControl "180+2"]
[EndTime "13:25:50 PDT"]
[Termination "orrbaverlekszarnyon won on time"]

1. e4 {[%clk 0:03:01.9]} 1... g6 {[%clk 0:02:59]} 2. d4 {[%clk 0:03:02.5]} 2...
Bg7 {[%clk 0:03:00.9]} 3. Nc3 {[%clk 0:03:03.5]} 3... d6 {[%clk 0:03:02.8]} 4.
Be3 {[%clk 0:03:02.6]} 4... Nf6 {[%clk 0:03:04.7]} 5. Qd2 {[%clk 0:03:03.3]}
5... O-O {[%clk 0:03:05.9]} 6. O-O-O {[%clk 0:03:03.9]} 6... c6 {[%clk
0:03:06.5]} 7. f3 {[%clk 0:03:05.1]} 7... b5 {[%clk 0:03:07.9]} 8. h4 {[%clk
0:03:05]} 8... a5 {[%clk 0:03:07.9]} 9. h5 {[%clk 0:03:04.3]} 9... a4 {[%clk
0:03:09.4]} 10. hxg6 {[%clk 0:03:04.7]} 10... fxg6 {[%clk 0:03:11.3]} 11. Bh6
{[%clk 0:03:03.8]} 11... Rf7 {[%clk 0:03:12.8]} 12. Nh3 {[%clk 0:02:56.8]} 12...
b4 {[%clk 0:03:10.6]} 13. Ne2 {[%clk 0:02:55.2]} 13... b3 {[%clk 0:03:11.6]} 14.
cxb3 {[%clk 0:02:50.2]} 14... axb3 {[%clk 0:03:13.5]} 15. a3 {[%clk 0:02:51.7]}
15... Bxh6 {[%clk 0:03:01.8]} 16. Qxh6 {[%clk 0:02:49.4]} 16... Qa5 {[%clk
0:02:04.5]} 17. Nef4 {[%clk 0:02:16.4]} 17... Bxh3 {[%clk 0:01:48.2]} 18. Rxh3
{[%clk 0:02:14.2]} 18... e5 {[%clk 0:01:05.7]} 19. Nxg6 {[%clk 0:02:05.2]} 19...
exd4 {[%clk 0:01:04.4]} 20. Ne7+ {[%clk 0:01:46.7]} 20... Kh8 {[%clk 0:01:00.8]}
21. Rg3 {[%clk 0:01:34.5]} 21... Qc5+ {[%clk 0:00:41.9]} 22. Kd2 {[%clk
0:01:24.5]} 22... Nxe4+ {[%clk 0:00:34.6]} 23. Ke1 {[%clk 0:00:40.5]} 23... Qa5+
{[%clk 0:00:33.9]} 24. Rd2 {[%clk 0:00:41.6]} 24... Qxd2+ {[%clk 0:00:29.5]} 25.
Qxd2 {[%clk 0:00:41.5]} 25... Nxg3 {[%clk 0:00:26]} 26. Qxd4+ {[%clk 0:00:25.3]}
26... Rg7 {[%clk 0:00:21.2]} 27. Qxd6 {[%clk 0:00:21.4]} 27... Na6 {[%clk
0:00:18.1]} 28. Bxa6 {[%clk 0:00:20.2]} 28... Re8 {[%clk 0:00:19.5]} 29. Bc4
{[%clk 0:00:15]} 29... Rgxe7+ {[%clk 0:00:18.4]} 30. Kd2 {[%clk 0:00:16.2]}
30... Nf5 {[%clk 0:00:13.4]} 31. Qf6+ {[%clk 0:00:15.1]} 31... Ng7 {[%clk
0:00:14.7]} 32. Kc3 {[%clk 0:00:15]} 32... Re3+ {[%clk 0:00:14.2]} 33. Kb4
{[%clk 0:00:15.3]} 33... Rb8+ {[%clk 0:00:13.7]} 34. Kc5 {[%clk 0:00:16.6]}
34... Rbe8 {[%clk 0:00:11]} 35. a4 {[%clk 0:00:16.7]} 35... R3e5+ {[%clk
0:00:08.4]} 36. Kb4 {[%clk 0:00:17.6]} 36... c5+ {[%clk 0:00:09.8]} 37. Kxb3
{[%clk 0:00:17.5]} 37... Re3+ {[%clk 0:00:10.4]} 38. Ka2 {[%clk 0:00:18]} 38...
Ra8 {[%clk 0:00:10.5]} 39. b3 {[%clk 0:00:18.2]} 39... Re1 {[%clk 0:00:07]} 40.
Kb2 {[%clk 0:00:16.8]} 40... Rg1 {[%clk 0:00:07.4]} 41. g4 {[%clk 0:00:17.3]}
41... Rg2+ {[%clk 0:00:07.9]} 42. Kc3 {[%clk 0:00:17.7]} 42... Re8 {[%clk
0:00:09.3]} 43. a5 {[%clk 0:00:16.9]} 43... Re3+ {[%clk 0:00:04.2]} 44. Bd3
{[%clk 0:00:18]} 44... Re8 {[%clk 0:00:06.1]} 45. a6 {[%clk 0:00:18.9]} 45...
Ra2 {[%clk 0:00:06]} 46. Qc6 {[%clk 0:00:18.9]} 46... Rf8 {[%clk 0:00:06.4]} 47.
Qxc5 {[%clk 0:00:19.7]} 47... Rd8 {[%clk 0:00:04.1]} 48. Qc7 {[%clk 0:00:20.2]}
48... Ne6 {[%clk 0:00:03.7]} 49. Qe7 {[%clk 0:00:19.6]} 49... Rc8+ {[%clk
0:00:04.1]} 50. Kb4 {[%clk 0:00:20.8]} 50... Ng7 {[%clk 0:00:04.3]} 51. a7
{[%clk 0:00:20.7]} 51... Ra1 {[%clk 0:00:02.2]} 52. Be4 {[%clk 0:00:21.8]} 52...
Rg8 {[%clk 0:00:03]} 53. a8=Q {[%clk 0:00:22.3]} 1-0